fUST/lending_fUST_20250404
["ID","MTS","AMOUNT","RATE_DAILY","PERIOD"]
[357098208,1743739839476,-5312.62119261,0.00019634,2]
[357098210,1743739839486,-500.0,0.00019634,2]
[357098212,1743739839496,-159.88,0.00019634,2]
[357098214,1743739839506,-500.0,0.00019634,2]
[357098216,1743739839516,-500.0,0.00019634,2]
[357098218,1743739839526,-1405.32,0.00019634,2]
[357098220,1743739839535,-500.0,0.00019634,2]
[357098222,1743739839545,-308.51,0.00019636,2]
[357098224,1743739839555,-812.42,0.00019636,2]
[357098226,1743739839565,-500.0,0.00019636,2]
[357098228,1743739839574,-500.0,0.00019636,2]
[357098230,1743739839584,-500.0,0.00019636,2]
[357098232,1743739839593,-361.52,0.00019636,2]
[357098234,1743739839603,-500.0,0.00019636,2]
[357098236,1743739839612,-500.0,0.00019636,2]
[357098238,1743739839623,-582.76,0.00019636,2]
[357098240,1743739839632,-480.92,0.00019636,2]
[357098242,1743739839642,-520.41,0.00019636,2]
[357098244,1743739839651,-500.0,0.00019636,2]
[357098246,1743739839660,-500.0,0.00019636,2]
[357098248,1743739839670,-500.0,0.00019636,2]
[357098250,1743739839680,-2971.74,0.00019636,2]
[357098252,1743739839690,-500.0,0.00019636,2]
[357098254,1743739839701,-500.0,0.00019636,2]
[357098256,1743739839712,-3443.53,0.00019636,2]
[357098258,1743739839723,-500.0,0.00019636,2]
[357098260,1743739839732,-500.0,0.00019636,2]
[357098262,1743739839742,-500.0,0.00019636,2]
[357098264,1743739839752,-500.0,0.00019636,2]
[357098266,1743739839762,-500.0,0.00019636,2]
[357098269,1743739839772,-568.202219,0.00019636,2]
[357098271,1743739839782,-568.202219,0.00019636,2]
[357098273,1743739839791,-672.400248,0.00019636,2]
[357098275,1743739839801,-538.16,0.00019638,2]
[357098277,1743739839810,-188.0,0.0001964,6]
[357098279,1743739839820,-500.0,0.000198,5]
[357098282,1743739839829,-3000.0,0.000198,2]
[357098285,1743739839839,-3000.0,0.0001981,2]
[357098287,1743739839849,-3000.0,0.0001982,2]
[357098289,1743739839859,-3000.0,0.0001983,2]
[357098291,1743739839868,-3000.0,0.0001984,2]
[357098293,1743739839878,-3000.0,0.0001985,2]
[357098295,1743739839887,-3000.0,0.0001986,2]
[357098297,1743739839897,-151.0,0.0001986,2]
[357098299,1743739839906,-151.0,0.0001986,2]
[357098301,1743739839915,-3213.75321205,0.00019866,2]
[357098303,1743739839926,-3000.0,0.0001987,2]
[357098305,1743739839936,-500.0,0.0001987,2]
[357098307,1743739839946,-402.42959,0.0001987,2]
[357098309,1743739839958,-402.42959,0.0001987,2]
[357098311,1743739839967,-500.0,0.0001987,2]
[357098313,1743739839976,-150.06,0.0001987,2]
[357098315,1743739839986,-500.0,0.0001987,2]
[357098317,1743739839997,-150.06,0.0001987,2]
[357098319,1743739840007,-500.0,0.0001987,2]
[357098321,1743739840018,-150.32171393,0.0001987,2]
[357098323,1743739840029,-253.21547557,0.0001987,2]
[357098325,1743739840039,-150.12860358,0.0001987,2]
[357098327,1743739840049,-150.30524299,0.0001987,2]
[357098329,1743739840060,-1170.83,0.00019873,2]
[357098331,1743739840070,-3330.316265,0.0001988,2]
[357098333,1743739840079,-500.0,0.00019897,2]
[357098335,1743739840089,-500.0,0.00019897,2]
[357098337,1743739840099,-150.06,0.00019897,2]
[357098339,1743739840109,-500.0,0.00019897,2]
[357098341,1743739840119,-500.0,0.00019897,2]
[357098343,1743739840130,-7292.45,0.00019908,2]
[357098345,1743739840139,-500.0,0.00019908,2]
[357098347,1743739840149,-500.0,0.00019908,2]
[357098349,1743739840158,-500.0,0.00019908,2]
[357098351,1743739840167,-1405.32,0.00019908,2]
[357098353,1743739840178,-500.0,0.00019908,2]
[357098355,1743739840187,-812.42,0.0001991,2]
[357098357,1743739840197,-500.0,0.0001991,2]
[357098358,1743739840208,-500.0,0.0001991,2]
[357098359,1743739840218,-307.68,0.0001991,2]
[357098360,1743739840228,-500.0,0.0001991,2]
[357098362,1743739840242,-500.0,0.0001991,2]
[357098364,1743739840254,-500.0,0.0001991,2]
[357098366,1743739840267,-500.0,0.0001991,2]
[357098367,1743739840280,-500.0,0.0001991,2]
[357098369,1743739840289,-2971.74,0.0001991,2]
[357098371,1743739840299,-500.0,0.0001991,2]
[357098373,1743739840311,-500.0,0.0001991,2]
[357098375,1743739840321,-3443.53,0.0001991,2]
[357098377,1743739840331,-376.51549083,0.0001991,2]
[357098379,1743739840340,-253.96,0.0001991,2]
[357098381,1743739840350,-399.29,0.0001991,2]
[357098383,1743739840359,-500.0,0.0001991,2]
[357098385,1743739840369,-568.202219,0.0001991,2]
[357098387,1743739840379,-568.202219,0.0001991,2]
[357098389,1743739840388,-672.400248,0.0001991,2]
[357098391,1743739840398,-538.16,0.00019912,2]
[357098393,1743739840408,-188.0,0.00019914,6]
[357098395,1743739840417,-737.89286865,0.00019925,2]
[357098397,1743739840427,-500.0,0.00019925,2]
[357098399,1743739840437,-199.88,0.00019925,2]
[357098401,1743739840446,-852.68950915,0.00019925,2]
[357098404,1743739840457,-500.0,0.00019925,2]
[357098406,1743739840467,-500.0,0.00019952,2]
[357098408,1743739840477,-500.0,0.00019952,2]
[357098410,1743739840487,-576.44727386,0.00019959,2]
[357098412,1743739840497,-1200.0,0.00019968,2]
[357098415,1743739840518,-500.0,0.0001998,2]
[357098417,1743739840528,-500.0,0.0001998,2]
[357098419,1743739840537,-619.0,0.0002,2]
[357098421,1743739840547,-48874.99527798,0.0002,2]
[357098423,1743739840557,-402.42959,0.0002,2]
[357098425,1743739840567,-402.42959,0.0002,2]
[357098427,1743739840576,-151.0,0.0002,2]
[357098429,1743739840586,-151.0,0.0002,2]
[357098431,1743739840596,-568.202219,0.0002,2]
[357098433,1743739840606,-568.202219,0.0002,2]
[357098436,1743739840616,-2000.0,0.0002,4]
[357098438,1743739840626,-672.400248,0.0002,2]
[357098440,1743739840636,-654.98279785,0.00020007,2]
[357098442,1743739840646,-532.78899492,0.00020007,2]
[357098444,1743739840655,-1170.83,0.00020147,2]
[357098446,1743739840666,-7292.45,0.00020182,2]
[357098448,1743739840675,-393.4,0.00020182,2]
[357098450,1743739840685,-500.0,0.00020182,2]
[357098452,1743739840695,-500.0,0.00020182,2]
[357098454,1743739840705,-1405.32,0.00020182,2]
[357098456,1743739840714,-500.0,0.00020182,2]
[357098458,1743739840725,-812.42,0.00020184,2]
[357098460,1743739840734,-500.0,0.00020184,2]
[357098462,1743739840744,-500.0,0.00020184,2]
[357098464,1743739840754,-500.0,0.00020184,2]
[357098466,1743739840764,-500.0,0.00020184,2]
[357098468,1743739840775,-500.0,0.00020184,2]
[357098470,1743739840786,-500.0,0.00020184,2]
[357098472,1743739840796,-500.0,0.00020184,2]
[357098474,1743739840806,-2971.74,0.00020184,2]
[357098476,1743739840816,-500.0,0.00020184,2]
[357098478,1743739840826,-500.0,0.00020184,2]
[357098480,1743739840835,-3443.53,0.00020184,2]
[357098482,1743739840845,-500.0,0.00020184,2]
[357098484,1743739840855,-538.16,0.00020186,2]
[357098486,1743739840864,-188.0,0.00020188,6]
[357098488,1743739840874,-600.0,0.00020322,2]
[357098490,1743739840884,-1170.83,0.00020421,2]
[357098492,1743739840893,-7292.45,0.00020456,2]
[357098494,1743739840903,-500.0,0.00020456,2]
[357098496,1743739840913,-546.09381794,0.00020456,2]
[357098498,1743739840922,-1405.32,0.00020456,2]
[357098501,1743739840932,-500.0,0.00020456,2]
[357098502,1743739840941,-812.42,0.00020458,2]
[357098504,1743739840956,-500.0,0.00020458,2]
[357098506,1743739840966,-500.0,0.00020458,2]
[357098508,1743739840976,-227.47383053,0.00020458,2]
[357098511,1743739840986,-537.82,0.00020458,2]
[357098512,1743739840995,-500.0,0.00020458,2]
[357098514,1743739841006,-500.0,0.00020458,2]
[357098515,1743739841016,-500.0,0.00020458,2]
[357098516,1743739841026,-2971.74,0.00020458,2]
[357098517,1743739841035,-500.0,0.00020458,2]
[357098518,1743739841046,-438.83720533,0.00020458,2]
[357098519,1743739841056,-3443.53,0.00020458,2]
[357098520,1743739841066,-254.39,0.00020458,2]
[357098521,1743739841075,-538.16,0.0002046,2]
[357098522,1743739841085,-188.0,0.00020462,6]
[357098523,1743739841095,-420.0,0.00020508,2]
[357098524,1743739841106,-1600.0,0.00020516,2]
[357098525,1743739841116,-600.0,0.00020534,2]
[357098526,1743739841126,-402.42959,0.00020693,2]
[357098527,1743739841140,-402.42959,0.00020693,2]
[357098528,1743739841150,-151.0,0.00020693,2]
[357098529,1743739841160,-256.501771,0.00020693,2]
[357098530,1743739841170,-1170.83,0.00020695,2]
[357098531,1743739841322,-7292.45,0.0002073,2]
[357098532,1743739841333,-500.0,0.0002073,2]
[357098533,1743739841345,-1405.32,0.0002073,2]
[357098534,1743739841355,-500.0,0.0002073,2]
[357098535,1743739841364,-672.400248,0.0002073,2]
[357098536,1743739841375,-812.42,0.00020732,2]
[357098537,1743739841385,-500.0,0.00020732,2]
[357098538,1743739841395,-500.0,0.00020732,2]
[357098539,1743739841404,-648.28,0.00020732,2]
[357098540,1743739841414,-500.0,0.00020732,2]
[357098541,1743739841424,-181.6,0.00020732,2]
[357098543,1743739841433,-2971.74,0.00020732,2]
[357098544,1743739841443,-500.0,0.00020732,2]
[357098545,1743739841452,-3443.53,0.00020732,2]
[357098546,1743739841462,-568.202219,0.00020732,2]
[357098547,1743739841471,-568.202219,0.00020732,2]
[357098548,1743739841481,-538.16,0.00020734,2]
[357098549,1743739841491,-188.0,0.00020736,6]
[357098550,1743739841500,-1022.32702849,0.00020746,2]
[357098551,1743739841509,-3213.75321205,0.00020831,3]
[357098552,1743739841519,-1170.83,0.00020969,2]
[357098553,1743739841528,-3000.0,0.00021,2]
[357098554,1743739841537,-152.51,0.00021,2]
[357098556,1743739841549,-2000.0,0.00021,4]
[357098558,1743739841558,-7292.45,0.00021004,2]
[357098559,1743739841568,-265.47474383,0.00021004,2]
[357098561,1743739841577,-1405.32,0.00021004,2]
[357098562,1743739841587,-500.0,0.00021004,2]
[357098563,1743739841596,-812.42,0.00021006,2]
[357098564,1743739841605,-500.0,0.00021006,2]
[357098565,1743739841615,-284.70057541,0.00021006,2]
[357098566,1743739841625,-500.0,0.00021006,2]
[357098567,1743739841634,-2971.74,0.00021006,2]
[357098568,1743739841644,-500.0,0.00021006,2]
[357098569,1743739841653,-3443.53,0.00021006,2]
[357098570,1743739841663,-538.16,0.00021008,2]
[357098571,1743739841672,-3000.0,0.0002101,2]
[357098572,1743739841682,-188.0,0.0002101,6]
[357098573,1743739841691,-3000.0,0.0002102,2]
[357098574,1743739841703,-3000.0,0.0002103,2]
[357098575,1743739841713,-3000.0,0.0002104,2]
[357098576,1743739841724,-3000.0,0.0002105,2]
[357098577,1743739841734,-402.42959,0.0002105,2]
[357098578,1743739841744,-402.42959,0.0002105,2]
[357098579,1743739841753,-151.0,0.0002105,2]
[357098580,1743739841762,-2939.29811543,0.00021056,2]
[357098581,1743739841854,-685.0651998,0.00021056,2]
[357098582,1743739841866,-19380.72913201,0.00021056,2]
[357098583,1743739841876,-3000.0,0.0002106,2]
[357098584,1743739841886,-568.202219,0.0002106,2]
[357098585,1743739841895,-568.202219,0.0002106,2]
[357098586,1743739841904,-2000.0,0.00021064,2]
[357098587,1743739841915,-367.0343629,0.0002107,2]
[357098588,1743739841924,-3000.0,0.0002107,2]
[357098589,1743739841934,-672.400248,0.0002107,2]
[357098590,1743739841943,-3000.0,0.0002108,2]
[357098591,1743739841955,-3000.0,0.0002109,2]
[357098592,1743739841964,-198.2,0.000211,2]
[357098593,1743739841974,-3000.0,0.000211,2]
[357098594,1743739841984,-3000.0,0.0002111,2]
[357098595,1743739841994,-3000.0,0.0002112,2]
[357098596,1743739842004,-3000.0,0.0002113,2]
[357098597,1743739842013,-3000.0,0.0002114,2]
[357098598,1743739842023,-1557.91669797,0.0002115,2]
[357098607,1743739843039,-361.00510144,0.00018659,2]
[357098622,1743739846130,-39.99489856,0.00018659,2]
[357098623,1743739846140,-401.0,0.00018847,2]
[357098624,1743739846149,-672.400248,0.00018873,2]
[357098625,1743739846158,-9131.29735896,0.00019088,2]
[357098626,1743739846167,-441.74452471,0.00019088,2]
[357098627,1743739846176,-672.400248,0.00019088,2]
[357098628,1743739846186,-672.400248,0.00019362,2]
[357098629,1743739846196,-672.400248,0.00019636,2]
[357098630,1743739846206,-672.400248,0.0001991,2]
[357098631,1743739846215,-672.400248,0.0002,2]
[357098632,1743739846224,-672.400248,0.0002073,2]
[357098633,1743739846235,-672.400248,0.0002107,2]
[357098634,1743739846246,-1442.08330203,0.0002115,2]
[357098635,1743739846255,-3000.0,0.0002116,2]
[357098636,1743739846264,-8856.59726658,0.00021166,2]
[357098637,1743739846273,-12500.0,0.00021166,2]
[357098638,1743739846284,-269.44965781,0.00021166,2]
[357098639,1743739846296,-132.97993219,0.00021166,2]
[357098640,1743739846306,-402.42959,0.00021166,2]
[357098641,1743739846316,-151.0,0.00021166,2]
[357098642,1743739846326,-1400.53579882,0.00021166,2]
[357098660,1743740297652,528.35435138,0.00025,30]
[357098661,1743740415066,229.66848901,0.00015,3]
[357098667,1743740816128,-166.162906,0.00013562,2]
[357098668,1743740816149,-130.04751316,0.00013699,2]
[357098669,1743740841453,-36.11539284,0.00013699,2]
[357098670,1743740841476,-128.16973439,0.00018623,2]
[357098715,1743741038172,-3180.0,0.00015,2]
[357098716,1743741038183,-1286.61420351,0.00016395,2]
[357098717,1743741038193,-199.9295074,0.00017761,2]
[357098718,1743741038203,-781.25,0.00018565,2]
[357098719,1743741038213,-419.12848707,0.00018594,2]
[357098720,1743741038225,-160.0,0.00018594,2]
[357098721,1743741038235,-388.46,0.00018801,3]
[357098722,1743741038244,-253.0,0.00018809,2]
[357098723,1743741038254,-580.85534083,0.0001881,2]
[357098724,1743741038264,-500.0,0.0001881,2]
[357098725,1743741038274,-524.37865328,0.0001881,2]
[357098726,1743741038284,-506.93260354,0.0001881,2]
[357098727,1743741038294,-500.0,0.0001881,2]
[357098728,1743741038304,-500.0,0.0001881,2]
[357098729,1743741038313,-585.48678568,0.0001881,2]
[357098730,1743741038322,-500.0,0.0001881,2]
[357098731,1743741038334,-500.0,0.0001881,2]
[357098732,1743741038344,-500.0,0.0001881,2]
[357098733,1743741038354,-500.0,0.0001881,2]
[357098734,1743741038365,-500.0,0.0001881,2]
[357098735,1743741038375,-500.0,0.0001881,2]
[357098736,1743741038386,-500.0,0.0001881,2]
[357098737,1743741038396,-500.0,0.0001881,2]
[357098738,1743741038407,-500.0,0.0001881,2]
[357098739,1743741038418,-500.0,0.0001881,2]
[357098740,1743741038428,-500.0,0.0001881,2]
[357098741,1743741038603,-500.0,0.0001881,2]
[357098742,1743741038658,-500.0,0.0001881,2]
[357098743,1743741038669,-500.0,0.0001881,2]
[357098744,1743741038679,-500.0,0.0001881,2]
[357098745,1743741038688,-500.0,0.0001881,2]
[357098746,1743741038697,-500.0,0.0001881,2]
[357098747,1743741038709,-500.0,0.0001881,2]
[357098748,1743741038719,-500.0,0.0001881,2]
[357098749,1743741038729,-500.0,0.0001881,2]
[357098750,1743741038738,-2310.08,0.0001881,2]
[357098751,1743741038748,-500.0,0.0001881,2]
[357098752,1743741038757,-500.0,0.0001881,2]
[357098753,1743741038767,-500.0,0.0001881,2]
[357098754,1743741038777,-634.80900532,0.0001881,2]
[357098755,1743741038786,-500.0,0.0001881,2]
[357098756,1743741038796,-500.0,0.0001881,2]
[357098757,1743741038806,-500.0,0.0001881,2]
[357098758,1743741038816,-500.0,0.0001881,2]
[357098759,1743741038825,-626.68,0.0001881,2]
[357098760,1743741038835,-500.0,0.0001881,2]
[357098761,1743741038844,-500.0,0.0001881,2]
[357098762,1743741038853,-500.0,0.0001881,2]
[357098763,1743741038863,-500.0,0.0001881,2]
[357098764,1743741038873,-500.0,0.0001881,2]
[357098765,1743741038883,-500.0,0.0001881,2]
[357098766,1743741038892,-500.0,0.0001881,2]
[357098767,1743741038901,-500.0,0.0001881,2]
[357098768,1743741038912,-500.0,0.0001881,2]
[357098769,1743741038922,-500.0,0.0001881,2]
[357098770,1743741038931,-500.0,0.0001881,2]
[357098771,1743741038941,-500.0,0.0001881,2]
[357098772,1743741038951,-500.0,0.0001881,2]
[357098773,1743741038960,-4585.78,0.0001881,2]
[357098774,1743741038970,-500.0,0.0001881,2]
[357098775,1743741038979,-500.0,0.0001881,2]
[357098776,1743741038989,-500.0,0.0001881,2]
[357098777,1743741038998,-500.0,0.0001881,2]
[357098778,1743741039008,-500.0,0.0001881,2]
[357098779,1743741039018,-500.0,0.0001881,2]
[357098780,1743741039028,-500.0,0.0001881,2]
[357098781,1743741039037,-500.0,0.0001881,2]
[357098782,1743741039046,-500.0,0.0001881,2]
[357098783,1743741039056,-500.0,0.0001881,2]
[357098784,1743741039065,-500.0,0.0001881,2]
[357098785,1743741039075,-500.0,0.0001881,2]
[357098786,1743741039085,-500.0,0.0001881,2]
[357098787,1743741039094,-500.0,0.0001881,2]
[357098788,1743741039104,-500.0,0.0001881,2]
[357098789,1743741039114,-500.0,0.0001881,2]
[357098790,1743741039124,-500.0,0.0001881,2]
[357098791,1743741039134,-500.0,0.0001881,2]
[357098792,1743741039144,-500.0,0.0001881,2]
[357098793,1743741039153,-500.0,0.0001881,2]
[357098794,1743741039163,-500.0,0.0001881,2]
[357098795,1743741039172,-500.0,0.0001881,2]
[357098796,1743741039182,-500.0,0.0001881,2]
[357098797,1743741039191,-500.0,0.0001881,2]
[357098798,1743741039201,-1117.46,0.0001881,2]
[357098799,1743741039211,-500.0,0.0001881,2]
[357098800,1743741039220,-500.0,0.0001881,2]
[357098801,1743741039229,-500.0,0.0001881,2]
[357098802,1743741039239,-664.07,0.0001881,2]
[357098803,1743741039249,-500.0,0.0001881,2]
[357098804,1743741039258,-500.0,0.0001881,2]
[357098805,1743741039267,-500.0,0.0001881,2]
[357098806,1743741039278,-507.2708297,0.0001881,2]
[357098807,1743741039287,-514.71895964,0.0001881,2]
[357098808,1743741039297,-500.0,0.0001881,2]
[357098809,1743741039307,-500.0,0.0001881,2]
[357098810,1743741039316,-500.0,0.0001881,2]
[357098811,1743741039325,-500.0,0.0001881,2]
[357098812,1743741039335,-500.0,0.0001881,2]
[357098813,1743741039345,-500.0,0.0001881,2]
[357098814,1743741039354,-500.0,0.0001881,2]
[357098815,1743741039363,-500.0,0.0001881,2]
[357098816,1743741039373,-500.0,0.0001881,2]
[357098817,1743741039382,-500.0,0.0001881,2]
[357098818,1743741039392,-500.0,0.0001881,2]
[357098819,1743741039402,-500.0,0.0001881,2]
[357098820,1743741039412,-549.27187765,0.0001881,2]
[357098821,1743741039422,-500.0,0.0001881,2]
[357098822,1743741039432,-312.0,0.0001881,2]
[357098823,1743741039442,-498.85218358,0.0001881,2]
[357098824,1743741039452,-515.24024095,0.0001881,2]
[357098825,1743741039463,-550.57097674,0.00018811,2]
[357098826,1743741039473,-500.0,0.00018811,2]
[357098827,1743741039483,-500.0,0.00018811,2]
[357098828,1743741039493,-558.00153522,0.00018811,2]
[357098829,1743741039503,-500.0,0.00018811,2]
[357098830,1743741039512,-500.0,0.00018811,2]
[357098831,1743741039522,-500.0,0.00018811,2]
[357098832,1743741039532,-500.0,0.00018811,2]
[357098833,1743741039545,-500.0,0.00018811,2]
[357098834,1743741039554,-500.0,0.00018811,2]
[357098835,1743741039565,-500.0,0.00018811,2]
[357098836,1743741039575,-500.0,0.00018811,2]
[357098837,1743741039585,-506.65883047,0.00018811,2]
[357098838,1743741039595,-500.0,0.00018811,2]
[357098839,1743741039605,-500.0,0.00018811,2]
[357098840,1743741039616,-518.52874879,0.00018811,2]
[357098841,1743741039626,-603.69726671,0.00018811,2]
[357098842,1743741039636,-500.0,0.00018811,2]
[357098843,1743741039646,-500.0,0.00018811,2]
[357098844,1743741039657,-500.0,0.00018811,2]
[357098845,1743741039667,-500.0,0.00018811,2]
[357098846,1743741039677,-500.0,0.00018811,2]
[357098847,1743741039687,-500.0,0.00018811,2]
[357098848,1743741039696,-500.0,0.00018811,2]
[357098849,1743741039707,-500.0,0.00018811,2]
[357098850,1743741039717,-200.0,0.00018811,2]
[357098851,1743741039726,-256.65759661,0.00018811,2]
[357098852,1743741039736,-500.0,0.00018811,2]
[357098853,1743741039746,-500.0,0.00018811,2]
[357098854,1743741039756,-505.90642205,0.00018811,2]
[357098855,1743741039766,-216.55690958,0.00018811,2]
[357098856,1743741039776,-510.20058722,0.00018811,2]
[357098857,1743741039786,-500.0,0.00018811,2]
[357098858,1743741039795,-500.0,0.00018811,2]
[357098859,1743741039805,-500.0,0.00018811,2]
[357098860,1743741039815,-513.56551307,0.00018811,2]
[357098861,1743741039825,-500.0,0.00018811,2]
[357098862,1743741039835,-500.0,0.00018811,2]
[357098863,1743741039844,-500.0,0.00018811,2]
[357098864,1743741039854,-511.0461596,0.00018811,2]
[357098866,1743741039863,-500.0,0.00018811,2]
[357098867,1743741039873,-500.0,0.00018811,2]
[357098868,1743741039882,-466.33539202,0.00018811,2]
[357098869,1743741039892,-596.46811413,0.00018811,2]
[357098870,1743741039902,-500.0,0.00018811,2]
[357098871,1743741039911,-500.0,0.00018811,2]
[357098872,1743741039921,-500.0,0.00018811,2]
[357098873,1743741039931,-500.0,0.00018811,2]
[357098874,1743741039941,-614.02261486,0.00018811,2]
[357098875,1743741039951,-500.0,0.00018811,2]
[357098876,1743741039961,-500.0,0.00018811,2]
[357098877,1743741039970,-500.0,0.00018811,2]
[357098878,1743741039980,-509.72129183,0.00018811,2]
[357098879,1743741039990,-503.78667384,0.00018811,2]
[357098880,1743741040000,-508.87608237,0.00018811,2]
[357098881,1743741040010,-500.0,0.00018811,2]
[357098882,1743741040019,-500.0,0.00018811,2]
[357098883,1743741040029,-500.0,0.00018811,2]
[357098884,1743741040038,-530.7804004,0.00018811,2]
[357098885,1743741040048,-500.0,0.00018811,2]
[357098886,1743741040058,-500.0,0.00018811,2]
[357098887,1743741040067,-500.0,0.00018811,2]
[357098888,1743741040079,-561.65703785,0.00018811,2]
[357098889,1743741040088,-500.0,0.00018811,2]
[357098890,1743741040098,-500.0,0.00018811,2]
[357098891,1743741040108,-500.0,0.00018811,2]
[357098892,1743741040117,-500.0,0.00018811,2]
[357098893,1743741040127,-500.0,0.00018811,2]
[357098894,1743741040136,-500.0,0.00018811,2]
[357098895,1743741040146,-500.0,0.00018811,2]
[357098896,1743741040156,-500.0,0.00018811,2]
[357098897,1743741040166,-500.0,0.00018811,2]
[357098898,1743741040176,-500.0,0.00018811,2]
[357098899,1743741040186,-500.0,0.00018811,2]
[357098900,1743741040197,-511.16656439,0.00018811,2]
[357098901,1743741040208,-500.0,0.00018811,2]
[357098902,1743741040218,-528.05287515,0.00018811,2]
[357098903,1743741040228,-511.36985496,0.00018811,2]
[357098904,1743741040237,-519.70029123,0.00018811,2]
[357098905,1743741040247,-500.0,0.00018811,2]
[357098906,1743741040257,-500.0,0.00018811,2]
[357098907,1743741040267,-500.0,0.00018811,2]
[357098909,1743741040277,-500.0,0.00018811,2]
[357098911,1743741040286,-500.0,0.00018811,2]
[357098912,1743741040295,-500.0,0.00018811,2]
[357098913,1743741040305,-508.01220817,0.00018811,2]
[357098914,1743741040315,-506.8088392,0.00018811,2]
[357098915,1743741040324,-513.8082983,0.00018811,2]
[357098917,1743741040334,-508.96070473,0.00018811,2]
[357098918,1743741040344,-500.0,0.00018811,2]
[357098919,1743741040353,-500.0,0.00018811,2]
[357098920,1743741040364,-500.0,0.00018811,2]
[357098921,1743741040373,-500.0,0.00018811,2]
[357098922,1743741040383,-500.0,0.00018811,2]
[357098923,1743741040393,-500.0,0.00018811,2]
[357098924,1743741040402,-500.0,0.00018811,2]
[357098925,1743741040412,-500.0,0.00018811,2]
[357098926,1743741040421,-500.0,0.00018811,2]
[357098927,1743741040431,-189.95061081,0.00018811,2]
[357098928,1743741040441,-500.0,0.00018811,2]
[357098929,1743741040451,-529.0738629,0.00018811,2]
[357098930,1743741040461,-500.0,0.00018811,2]
[357098931,1743741040471,-500.0,0.00018811,2]
[357098932,1743741040482,-525.69891288,0.00018811,2]
[357098933,1743741040492,-500.0,0.00018811,2]
[357098934,1743741040508,-500.0,0.00018811,2]
[357098935,1743741040523,-500.0,0.00018811,2]
[357098936,1743741040536,-500.0,0.00018811,2]
[357098937,1743741040549,-500.0,0.00018811,2]
[357098938,1743741040559,-500.0,0.00018811,2]
[357098939,1743741040569,-500.0,0.00018811,2]
[357098940,1743741040581,-500.0,0.00018811,2]
[357098941,1743741040591,-500.0,0.00018811,2]
[357098942,1743741040600,-500.0,0.00018811,2]
[357098943,1743741040611,-531.75534658,0.00018811,2]
[357098944,1743741040622,-500.0,0.00018811,2]
[357098945,1743741040631,-517.5164487,0.00018811,2]
[357098946,1743741040642,-511.53048701,0.00018811,2]
[357098947,1743741040652,-500.0,0.00018811,2]
[357098948,1743741040663,-500.0,0.00018811,2]
[357098949,1743741040672,-500.0,0.00018811,2]
[357098950,1743741040682,-500.0,0.00018811,2]
[357098951,1743741040692,-500.0,0.00018811,2]
[357098952,1743741040702,-551.76606335,0.00018811,2]
[357098953,1743741040712,-500.0,0.00018811,2]
[357098954,1743741040722,-500.0,0.00018811,2]
[357098955,1743741040732,-500.0,0.00018811,2]
[357098956,1743741040742,-531.01721957,0.00018811,2]
[357098957,1743741040753,-500.0,0.00018811,2]